[Event "Titled Tuesday Blitz May 16 Early 2023"]
[White "zsizsi99"]
[Black "Hartikainen, Jarmo"]
[BlackFideId "503134"]
[WhiteElo "2231"]
[BlackElo "2078"]
[Result "0-1"]
[Round "06"]
[TimeControl "180+2"]
[Date "2023.05.16"]
[WhiteClock "0:00:00"]
[BlackClock "0:00:08"]

1. e4 {[%clk 0:03:00]}  c5 {[%clk 0:02:59]} 2. Nf3 {[%clk 0:03:00]}  Nc6 {[%clk 0:02:59]} 3. c3 {[%clk 0:02:58]}  d5 {[%clk 0:02:58]} 4. exd5 {[%clk 0:02:54]}  Qxd5 {[%clk 0:02:58]} 5. Na3 {[%clk 0:02:54]}  Bg4 {[%clk 0:02:40]} 6. Bc4 {[%clk 0:02:54]}  Qe4+ {[%clk 0:02:34]} 7. Kf1 {[%clk 0:02:37]}  e6 {[%clk 0:02:22]} 8. d3 {[%clk 0:02:32]}  Qf5 {[%clk 0:02:09]} 9. h3 {[%clk 0:02:27]}  Bxf3 {[%clk 0:02:08]} 10. Qxf3 {[%clk 0:02:26]}  Qxf3 {[%clk 0:02:06]} 11. gxf3 {[%clk 0:02:26]}  a6 {[%clk 0:02:06]} 12. Rg1 {[%clk 0:02:17]}  Rd8 {[%clk 0:02:03]} 13. Bf4 {[%clk 0:01:53]}  b5 {[%clk 0:01:46]} 14. Nxb5 {[%clk 0:01:53]}  axb5 {[%clk 0:01:46]} 15. Bxb5 {[%clk 0:01:53]}  Ne7 {[%clk 0:01:22]} 16. a4 {[%clk 0:01:49]}  f6 {[%clk 0:01:15]} 17. a5 {[%clk 0:01:37]}  Kf7 {[%clk 0:00:57]} 18. a6 {[%clk 0:01:36]}  Na7 {[%clk 0:00:49]} 19. Bc4 {[%clk 0:01:35]}  Nd5 {[%clk 0:00:47]} 20. Bxd5 {[%clk 0:01:27]}  exd5 {[%clk 0:00:41]} 21. Bc7 {[%clk 0:01:25]}  Rd7 {[%clk 0:00:41]} 22. Bb6 {[%clk 0:01:24]}  Bd6 {[%clk 0:00:38]} 23. d4 {[%clk 0:01:20]}  cxd4 {[%clk 0:00:36]} 24. Bxd4 {[%clk 0:01:20]}  Rb8 {[%clk 0:00:34]} 25. b4 {[%clk 0:01:18]}  Be5 {[%clk 0:00:30]} 26. Bxe5 {[%clk 0:01:11]}  fxe5 {[%clk 0:00:30]} 27. f4 {[%clk 0:01:11]}  exf4 {[%clk 0:00:24]} 28. Rg4 {[%clk 0:01:11]}  Rc7 {[%clk 0:00:19]} 29. Rxf4+ {[%clk 0:01:11]}  Ke6 {[%clk 0:00:19]} 30. Rf3 {[%clk 0:00:46]}  Nb5 {[%clk 0:00:19]} 31. Rd3 {[%clk 0:00:17]}  Rxc3 {[%clk 0:00:18]} 32. a7 {[%clk 0:00:15]}  Ra8 {[%clk 0:00:18]} 33. Ra6+ {[%clk 0:00:14]}  Ke5 {[%clk 0:00:16]} 34. Rd1 {[%clk 0:00:13]}  Rxa7 {[%clk 0:00:14]} 35. Re1+ {[%clk 0:00:12]}  Kd4 {[%clk 0:00:13]} 36. Rb6 {[%clk 0:00:11]}  Na3 {[%clk 0:00:12]} 37. Rd6 {[%clk 0:00:08]}  Rb7 {[%clk 0:00:10]} 38. Rd1+ {[%clk 0:00:08]}  Kc4 {[%clk 0:00:10]} 39. R6xd5 {[%clk 0:00:07]}  Rxb4 {[%clk 0:00:10]} 40. Rd7 {[%clk 0:00:07]}  Kb3 {[%clk 0:00:10]} 41. Rxg7 {[%clk 0:00:07]}  Kc2 {[%clk 0:00:09]} 42. Re1 {[%clk 0:00:06]}  h5 {[%clk 0:00:09]} 43. Kg2 {[%clk 0:00:05]}  h4 {[%clk 0:00:09]} 44. Re5 {[%clk 0:00:03]}  Rbb3 {[%clk 0:00:09]} 45. Reg5 {[%clk 0:00:02]}  Rxh3 {[%clk 0:00:09]} 46. Rg4 {[%clk 0:00:00]}  Rbc3 {[%clk 0:00:08]} 0-1


[Site "https://www.chess.com"]

[Event "Titled Tuesday Blitz May 16 Early 2023"]
[White "Dubov, Daniil"]
[Black "Le, Tuan Minh"]
[WhiteFideId "24126055"]
[BlackFideId "12401153"]
[WhiteElo "2793"]
[BlackElo "2566"]
[Result "1/2-1/2"]
[Round "07"]
[TimeControl "180+2"]
[Date "2023.05.16"]
[WhiteClock "0:00:04"]
[BlackClock "0:00:04"]

1. e4 {[%clk 0:03:00]}  c5 {[%clk 0:02:58]} 2. Nf3 {[%clk 0:03:01]}  Nf6 {[%clk 0:02:59]} 3. Nc3 {[%clk 0:02:57]}  d5 {[%clk 0:02:58]} 4. exd5 {[%clk 0:02:56]}  Nxd5 {[%clk 0:02:59]} 5. Bb5+ {[%clk 0:02:35]}  Bd7 {[%clk 0:02:59]} 6. Be2 {[%clk 0:02:33]}  Nf6 {[%clk 0:02:54]} 7. O-O {[%clk 0:02:31]}  Nc6 {[%clk 0:02:54]} 8. d4 {[%clk 0:02:31]}  cxd4 {[%clk 0:02:41]} 9. Nxd4 {[%clk 0:02:32]}  e5 {[%clk 0:02:29]} 10. Ndb5 {[%clk 0:02:26]}  a6 {[%clk 0:02:27]} 11. Nd6+ {[%clk 0:02:25]}  Bxd6 {[%clk 0:02:28]} 12. Qxd6 {[%clk 0:02:26]}  Bf5 {[%clk 0:02:23]} 13. Qc5 {[%clk 0:01:57]}  Qd4 {[%clk 0:02:23]} 14. Be3 {[%clk 0:01:54]}  Qxc5 {[%clk 0:02:23]} 15. Bxc5 {[%clk 0:01:55]}  O-O-O {[%clk 0:02:08]} 16. b4 {[%clk 0:01:23]}  Nd4 {[%clk 0:01:55]} 17. Bc4 {[%clk 0:01:17]}  Be6 {[%clk 0:01:53]} 18. Bd3 {[%clk 0:01:17]}  Nd5 {[%clk 0:01:44]} 19. Bxd4 {[%clk 0:01:09]}  exd4 {[%clk 0:01:43]} 20. Nxd5 {[%clk 0:01:09]}  Bxd5 {[%clk 0:01:42]} 21. Rfe1 {[%clk 0:01:08]}  Rhe8 {[%clk 0:01:37]} 22. a3 {[%clk 0:01:07]}  Kc7 {[%clk 0:01:37]} 23. f3 {[%clk 0:01:07]}  g6 {[%clk 0:01:32]} 24. Kf2 {[%clk 0:01:06]}  Kd6 {[%clk 0:01:30]} 25. h4 {[%clk 0:01:06]}  Rxe1 {[%clk 0:01:26]} 26. Rxe1 {[%clk 0:00:49]}  Rc8 {[%clk 0:01:26]} 27. h5 {[%clk 0:00:49]}  gxh5 {[%clk 0:01:01]} 28. Rh1 {[%clk 0:00:47]}  Rc3 {[%clk 0:00:59]} 29. Rxh5 {[%clk 0:00:45]}  Rxa3 {[%clk 0:00:58]} 30. Rxh7 {[%clk 0:00:45]}  Ra4 {[%clk 0:00:51]} 31. Rh6+ {[%clk 0:00:45]}  Be6 {[%clk 0:00:51]} 32. f4 {[%clk 0:00:41]}  Ke7 {[%clk 0:00:45]} 33. b5 {[%clk 0:00:30]}  axb5 {[%clk 0:00:25]} 34. Bxb5 {[%clk 0:00:30]}  Ra2 {[%clk 0:00:26]} 35. Bd3 {[%clk 0:00:23]}  Bb3 {[%clk 0:00:26]} 36. Rb6 {[%clk 0:00:20]}  Bxc2 {[%clk 0:00:27]} 37. Rxb7+ {[%clk 0:00:19]}  Kd6 {[%clk 0:00:22]} 38. Bxc2 {[%clk 0:00:17]}  Rxc2+ {[%clk 0:00:23]} 39. Kf3 {[%clk 0:00:17]}  f5 {[%clk 0:00:23]} 40. Rb5 {[%clk 0:00:15]}  Rc3+ {[%clk 0:00:21]} 41. Ke2 {[%clk 0:00:13]}  Rc5 {[%clk 0:00:19]} 42. Rb8 {[%clk 0:00:06]}  Kd5 {[%clk 0:00:19]} 43. Re8 {[%clk 0:00:06]}  Rc2+ {[%clk 0:00:16]} 44. Kd3 {[%clk 0:00:06]}  Rc3+ {[%clk 0:00:16]} 45. Ke2 {[%clk 0:00:06]}  Rc5 {[%clk 0:00:07]} 46. Kd3 {[%clk 0:00:04]}  Rc3+ {[%clk 0:00:07]} 47. Ke2 {[%clk 0:00:04]}  Rc5 {[%clk 0:00:04]} 48. Kd3 {[%clk 0:00:04]}  Rc3+ {[%clk 0:00:04]} 1/2-1/2


[Site "https://www.chess.com"]

[Event "Titled Tuesday Blitz May 16 Early 2023"]
[White "Kovalenko, Igor"]
[Black "Tabatabaei, M. Amin"]
[WhiteFideId "14117908"]
[BlackFideId "12521213"]
[WhiteElo "2574"]
[BlackElo "2575"]
[Result "1-0"]
[Round "07"]
[TimeControl "180+2"]
[Date "2023.05.16"]
[WhiteClock "0:00:07"]
[BlackClock "0:00:00"]

1. c4 {[%clk 0:02:58]}  e5 {[%clk 0:02:59]} 2. Nc3 {[%clk 0:02:58]}  Nc6 {[%clk 0:03:00]} 3. g3 {[%clk 0:02:55]}  Nf6 {[%clk 0:02:59]} 4. Bg2 {[%clk 0:02:56]}  Bc5 {[%clk 0:03:00]} 5. e3 {[%clk 0:02:55]}  d5 {[%clk 0:03:00]} 6. cxd5 {[%clk 0:02:55]}  Nb4 {[%clk 0:03:01]} 7. Nf3 {[%clk 0:02:55]}  Nd3+ {[%clk 0:01:57]} 8. Ke2 {[%clk 0:02:55]}  Bf5 {[%clk 0:01:29]} 9. Nh4 {[%clk 0:02:51]}  Bg4+ {[%clk 0:01:25]} 10. f3 {[%clk 0:02:48]}  Nxc1+ {[%clk 0:01:23]} 11. Rxc1 {[%clk 0:02:48]}  Bd7 {[%clk 0:01:24]} 12. Ne4 {[%clk 0:02:44]}  Be7 {[%clk 0:01:14]} 13. Qb3 {[%clk 0:02:12]}  O-O {[%clk 0:01:00]} 14. Rhf1 {[%clk 0:01:55]}  a5 {[%clk 0:00:50]} 15. a4 {[%clk 0:01:42]}  Ra6 {[%clk 0:00:42]} 16. Qxb7 {[%clk 0:01:36]}  Rb6 {[%clk 0:00:43]} 17. Qxc7 {[%clk 0:01:36]}  Nxd5 {[%clk 0:00:43]} 18. Qxd8 {[%clk 0:01:35]}  Rxd8 {[%clk 0:00:44]} 19. Nc5 {[%clk 0:01:16]}  Bxc5 {[%clk 0:00:41]} 20. Rxc5 {[%clk 0:01:17]}  Bxa4 {[%clk 0:00:41]} 21. Rfc1 {[%clk 0:00:59]}  g6 {[%clk 0:00:18]} 22. f4 {[%clk 0:00:55]}  Nb4 {[%clk 0:00:18]} 23. Rc8 {[%clk 0:00:46]}  Bb5+ {[%clk 0:00:18]} 24. Kd1 {[%clk 0:00:45]}  Ba4+ {[%clk 0:00:18]} 25. Ke2 {[%clk 0:00:46]}  Bb5+ {[%clk 0:00:19]} 26. Kd1 {[%clk 0:00:39]}  Rd6 {[%clk 0:00:10]} 27. Rxd8+ {[%clk 0:00:36]}  Rxd8 {[%clk 0:00:11]} 28. Rc5 {[%clk 0:00:20]}  Ba4+ {[%clk 0:00:10]} 29. Ke2 {[%clk 0:00:20]}  exf4 {[%clk 0:00:09]} 30. gxf4 {[%clk 0:00:20]}  Nd3 {[%clk 0:00:07]} 31. Rxa5 {[%clk 0:00:20]}  Nc1+ {[%clk 0:00:08]} 32. Ke1 {[%clk 0:00:19]}  Nd3+ {[%clk 0:00:08]} 33. Ke2 {[%clk 0:00:20]}  Nc1+ {[%clk 0:00:08]} 34. Ke1 {[%clk 0:00:20]}  Nd3+ {[%clk 0:00:08]} 35. Kf1 {[%clk 0:00:21]}  Nxb2 {[%clk 0:00:08]} 36. Nf3 {[%clk 0:00:20]}  Bd1 {[%clk 0:00:08]} 37. Nd4 {[%clk 0:00:19]}  Nc4 {[%clk 0:00:07]} 38. Ra8 {[%clk 0:00:18]}  Rxa8 {[%clk 0:00:05]} 39. Bxa8 {[%clk 0:00:19]}  Bg4 {[%clk 0:00:03]} 40. Ke1 {[%clk 0:00:19]}  Kg7 {[%clk 0:00:04]} 41. Bd5 {[%clk 0:00:19]}  Nd6 {[%clk 0:00:04]} 42. Kf2 {[%clk 0:00:19]}  Bd7 {[%clk 0:00:04]} 43. d3 {[%clk 0:00:19]}  f5 {[%clk 0:00:04]} 44. e4 {[%clk 0:00:17]}  fxe4 {[%clk 0:00:03]} 45. dxe4 {[%clk 0:00:18]}  Ne8 {[%clk 0:00:02]} 46. e5 {[%clk 0:00:17]}  Nc7 {[%clk 0:00:03]} 47. Bc4 {[%clk 0:00:18]}  h6 {[%clk 0:00:03]} 48. Ke3 {[%clk 0:00:17]}  Bc8 {[%clk 0:00:02]} 49. Kd3 {[%clk 0:00:15]}  Bd7 {[%clk 0:00:03]} 50. Kc3 {[%clk 0:00:15]}  Bc8 {[%clk 0:00:02]} 51. Kb4 {[%clk 0:00:15]}  Ne8 {[%clk 0:00:01]} 52. Kc5 {[%clk 0:00:15]}  h5 {[%clk 0:00:02]} 53. h4 {[%clk 0:00:12]}  Bg4 {[%clk 0:00:02]} 54. Kc6 {[%clk 0:00:12]}  Kf8 {[%clk 0:00:02]} 55. Bd3 {[%clk 0:00:09]}  Kf7 {[%clk 0:00:02]} 56. Bc4+ {[%clk 0:00:09]}  Ke7 {[%clk 0:00:03]} 57. Bd3 {[%clk 0:00:07]}  Kf7 {[%clk 0:00:03]} 58. Be4 {[%clk 0:00:07]}  Ng7 {[%clk 0:00:03]} 59. Kd6 {[%clk 0:00:06]}  Ne8+ {[%clk 0:00:04]} 60. Kc6 {[%clk 0:00:06]}  Ng7 {[%clk 0:00:04]} 61. Kc7 {[%clk 0:00:07]}  Ne8+ {[%clk 0:00:04]} 62. Kd8 {[%clk 0:00:07]}  Ng7 {[%clk 0:00:04]} 63. Bd5+ {[%clk 0:00:07]}  Kf8 {[%clk 0:00:02]} 64. e6 {[%clk 0:00:07]}  Nf5 {[%clk 0:00:00]} 65. Nxf5 {[%clk 0:00:07]} 1-0


[Site "https://www.chess.com"]

[Event "Titled Tuesday Blitz May 16 Early 2023"]
[White "Zakhartsov, Vladimir"]
[Black "Bortnyk, Olexandr"]
[WhiteFideId "4145097"]
[BlackFideId "14120828"]
[WhiteElo "2495"]
[BlackElo "2734"]
[Result "1/2-1/2"]
[Round "07"]
[TimeControl "180+2"]
[Date "2023.05.16"]
[WhiteClock "0:00:03"]
[BlackClock "0:00:02"]

1. d4 {[%clk 0:03:00]}  d6 {[%clk 0:02:55]} 2. e4 {[%clk 0:02:58]}  Nf6 {[%clk 0:02:55]} 3. Nc3 {[%clk 0:02:58]}  e5 {[%clk 0:02:53]} 4. dxe5 {[%clk 0:02:47]}  dxe5 {[%clk 0:02:54]} 5. Qxd8+ {[%clk 0:02:47]}  Kxd8 {[%clk 0:02:54]} 6. Bg5 {[%clk 0:02:45]}  Be6 {[%clk 0:02:51]} 7. O-O-O+ {[%clk 0:02:44]}  Nd7 {[%clk 0:02:51]} 8. f4 {[%clk 0:02:30]}  exf4 {[%clk 0:02:52]} 9. Nge2 {[%clk 0:02:30]}  Bd6 {[%clk 0:02:42]} 10. Nxf4 {[%clk 0:02:22]}  Bxf4+ {[%clk 0:01:50]} 11. Bxf4 {[%clk 0:02:22]}  c6 {[%clk 0:01:34]} 12. h3 {[%clk 0:02:10]}  Kc8 {[%clk 0:01:28]} 13. Be2 {[%clk 0:01:56]}  Nb6 {[%clk 0:01:06]} 14. b3 {[%clk 0:01:51]}  Rd8 {[%clk 0:01:05]} 15. a4 {[%clk 0:01:39]}  Rxd1+ {[%clk 0:00:57]} 16. Rxd1 {[%clk 0:01:39]}  Nbd7 {[%clk 0:00:58]} 17. Bf3 {[%clk 0:01:35]}  Kd8 {[%clk 0:00:54]} 18. e5 {[%clk 0:01:32]}  Ne8 {[%clk 0:00:54]} 19. Ne4 {[%clk 0:01:32]}  Ke7 {[%clk 0:00:48]} 20. Nd6 {[%clk 0:01:22]}  Rb8 {[%clk 0:00:39]} 21. a5 {[%clk 0:01:17]}  a6 {[%clk 0:00:36]} 22. c4 {[%clk 0:01:14]}  h6 {[%clk 0:00:30]} 23. h4 {[%clk 0:01:13]}  Nxd6 {[%clk 0:00:20]} 24. exd6+ {[%clk 0:01:11]}  Kf8 {[%clk 0:00:20]} 25. Kc2 {[%clk 0:01:08]}  Re8 {[%clk 0:00:18]} 26. g4 {[%clk 0:01:00]}  f6 {[%clk 0:00:16]} 27. Kc3 {[%clk 0:00:55]}  g5 {[%clk 0:00:16]} 28. Bg3 {[%clk 0:00:50]}  Bf7 {[%clk 0:00:13]} 29. Re1 {[%clk 0:00:47]}  Rxe1 {[%clk 0:00:10]} 30. Bxe1 {[%clk 0:00:48]}  Be6 {[%clk 0:00:10]} 31. hxg5 {[%clk 0:00:34]}  fxg5 {[%clk 0:00:05]} 32. Bg3 {[%clk 0:00:32]}  Ke8 {[%clk 0:00:05]} 33. b4 {[%clk 0:00:29]}  Kd8 {[%clk 0:00:05]} 34. b5 {[%clk 0:00:29]}  axb5 {[%clk 0:00:05]} 35. cxb5 {[%clk 0:00:29]}  Nb8 {[%clk 0:00:01]} 36. Kb4 {[%clk 0:00:25]}  Kc8 {[%clk 0:00:01]} 37. Be5 {[%clk 0:00:20]}  cxb5 {[%clk 0:00:01]} 38. Kxb5 {[%clk 0:00:20]}  Nd7 {[%clk 0:00:02]} 39. Bg7 {[%clk 0:00:20]}  Kb8 {[%clk 0:00:01]} 40. Be2 {[%clk 0:00:17]}  Kc8 {[%clk 0:00:01]} 41. Bd1 {[%clk 0:00:17]}  Kb8 {[%clk 0:00:02]} 42. Bf3 {[%clk 0:00:17]}  Kc8 {[%clk 0:00:02]} 43. Be2 {[%clk 0:00:17]}  Kb8 {[%clk 0:00:03]} 44. Bxh6 {[%clk 0:00:16]}  Ne5 {[%clk 0:00:03]} 45. Bxg5 {[%clk 0:00:16]}  Nxg4 {[%clk 0:00:03]} 46. Bf4 {[%clk 0:00:13]}  Bd7+ {[%clk 0:00:03]} 47. Kc5 {[%clk 0:00:12]}  Nf6 {[%clk 0:00:03]} 48. Bf3 {[%clk 0:00:12]}  Ka7 {[%clk 0:00:03]} 49. Be5 {[%clk 0:00:09]}  Ne8 {[%clk 0:00:02]} 50. Be2 {[%clk 0:00:08]}  Bc6 {[%clk 0:00:01]} 51. Bb5 {[%clk 0:00:08]}  Bxb5 {[%clk 0:00:01]} 52. Kxb5 {[%clk 0:00:09]}  Nxd6+ {[%clk 0:00:01]} 53. Bxd6 {[%clk 0:00:09]}  Ka8 {[%clk 0:00:02]} 54. Bc7 {[%clk 0:00:08]}  Ka7 {[%clk 0:00:03]} 55. Kc5 {[%clk 0:00:06]}  Ka8 {[%clk 0:00:02]} 56. Kd6 {[%clk 0:00:04]}  Ka7 {[%clk 0:00:03]} 57. Kd7 {[%clk 0:00:05]}  Ka8 {[%clk 0:00:01]} 58. Bf4 {[%clk 0:00:04]}  Ka7 {[%clk 0:00:02]} 59. Be3+ {[%clk 0:00:04]}  Kb8 {[%clk 0:00:02]} 60. Bb6 {[%clk 0:00:04]}  Ka8 {[%clk 0:00:02]} 61. Kd8 {[%clk 0:00:04]}  Kb8 {[%clk 0:00:02]} 62. Bd4 {[%clk 0:00:04]}  Ka8 {[%clk 0:00:02]} 63. Kc7 {[%clk 0:00:04]}  b5 {[%clk 0:00:02]} 64. axb6 {[%clk 0:00:03]} 1/2-1/2


[Site "https://www.chess.com"]

[Event "Titled Tuesday Blitz May 16 Early 2023"]
[White "Andreikin, Dmitry"]
[Black "Kamsky, Gata"]
[WhiteFideId "4158814"]
[BlackFideId "2000024"]
[WhiteElo "2736"]
[BlackElo "2660"]
[Result "1/2-1/2"]
[Round "07"]
[TimeControl "180+2"]
[Date "2023.05.16"]
[WhiteClock "0:00:13"]
[BlackClock "0:00:32"]

1. d4 {[%clk 0:03:00]}  Nf6 {[%clk 0:02:58]} 2. c4 {[%clk 0:02:59]}  e6 {[%clk 0:02:53]} 3. Nc3 {[%clk 0:02:58]}  Bb4 {[%clk 0:02:51]} 4. Nf3 {[%clk 0:02:59]}  b6 {[%clk 0:02:50]} 5. Qc2 {[%clk 0:02:55]}  Bb7 {[%clk 0:02:41]} 6. a3 {[%clk 0:02:55]}  Bxc3+ {[%clk 0:02:40]} 7. Qxc3 {[%clk 0:02:56]}  a5 {[%clk 0:02:38]} 8. Bg5 {[%clk 0:02:50]}  h6 {[%clk 0:02:36]} 9. Bh4 {[%clk 0:02:50]}  a4 {[%clk 0:02:33]} 10. Nd2 {[%clk 0:02:41]}  d6 {[%clk 0:02:29]} 11. f3 {[%clk 0:02:39]}  c5 {[%clk 0:02:27]} 12. e3 {[%clk 0:02:26]}  Nc6 {[%clk 0:02:05]} 13. Be2 {[%clk 0:02:02]}  O-O {[%clk 0:02:01]} 14. O-O {[%clk 0:01:55]}  cxd4 {[%clk 0:01:58]} 15. exd4 {[%clk 0:01:53]}  d5 {[%clk 0:01:54]} 16. cxd5 {[%clk 0:01:48]}  Qxd5 {[%clk 0:01:47]} 17. Bxf6 {[%clk 0:01:44]}  gxf6 {[%clk 0:01:47]} 18. Kh1 {[%clk 0:01:27]}  Qxd4 {[%clk 0:01:46]} 19. Qc1 {[%clk 0:01:27]}  Qe3 {[%clk 0:01:33]} 20. Ne4 {[%clk 0:01:13]}  Qxc1 {[%clk 0:01:28]} 21. Raxc1 {[%clk 0:01:11]}  Nd4 {[%clk 0:01:13]} 22. Nxf6+ {[%clk 0:00:55]}  Kg7 {[%clk 0:01:13]} 23. Nh5+ {[%clk 0:00:56]}  Kg6 {[%clk 0:01:12]} 24. Ng3 {[%clk 0:00:37]}  Nxe2 {[%clk 0:01:06]} 25. Nxe2 {[%clk 0:00:38]}  Ba6 {[%clk 0:01:04]} 26. Rfe1 {[%clk 0:00:37]}  Bxe2 {[%clk 0:01:02]} 27. Rxe2 {[%clk 0:00:38]}  Rac8 {[%clk 0:01:02]} 28. Rec2 {[%clk 0:00:33]}  Rxc2 {[%clk 0:00:59]} 29. Rxc2 {[%clk 0:00:34]}  Rd8 {[%clk 0:00:58]} 30. Kg1 {[%clk 0:00:33]}  b5 {[%clk 0:00:57]} 31. Kf2 {[%clk 0:00:31]}  Rd3 {[%clk 0:00:57]} 32. g4 {[%clk 0:00:26]}  Rb3 {[%clk 0:00:47]} 33. Kg3 {[%clk 0:00:25]}  e5 {[%clk 0:00:47]} 34. Kf2 {[%clk 0:00:17]}  h5 {[%clk 0:00:45]} 35. gxh5+ {[%clk 0:00:16]}  Kxh5 {[%clk 0:00:45]} 36. Rc5 {[%clk 0:00:15]}  Rxb2+ {[%clk 0:00:40]} 37. Ke3 {[%clk 0:00:16]}  f6 {[%clk 0:00:36]} 38. f4 {[%clk 0:00:16]}  Rb3+ {[%clk 0:00:36]} 39. Ke4 {[%clk 0:00:16]}  Kg6 {[%clk 0:00:31]} 40. fxe5 {[%clk 0:00:16]}  fxe5 {[%clk 0:00:31]} 41. Kxe5 {[%clk 0:00:15]}  Rxa3 {[%clk 0:00:31]} 42. Rxb5 {[%clk 0:00:15]}  Ra1 {[%clk 0:00:31]} 43. Ra5 {[%clk 0:00:11]}  a3 {[%clk 0:00:31]} 44. Kd4 {[%clk 0:00:12]}  a2 {[%clk 0:00:30]} 45. Kc3 {[%clk 0:00:12]}  Rc1+ {[%clk 0:00:30]} 46. Kb2 {[%clk 0:00:12]}  a1=Q+ {[%clk 0:00:30]} 47. Rxa1 {[%clk 0:00:12]}  Rxa1 {[%clk 0:00:31]} 48. Kxa1 {[%clk 0:00:13]}  Kg5 {[%clk 0:00:31]} 49. h4+ {[%clk 0:00:13]}  Kxh4 {[%clk 0:00:32]} 1/2-1/2


[Site "https://www.chess.com"]

[Event "Titled Tuesday Blitz May 16 Early 2023"]
[White "JeRoma71"]
[Black "Zhigalko, Sergei"]
[BlackFideId "13502956"]
[WhiteElo "2846"]
[BlackElo "2626"]
[Result "1-0"]
[Round "07"]
[TimeControl "180+2"]
[Date "2023.05.16"]
[WhiteClock "0:00:42"]
[BlackClock "0:00:00"]

1. Nf3 {[%clk 0:02:59]}  d5 {[%clk 0:02:59]} 2. g3 {[%clk 0:02:59]}  c6 {[%clk 0:02:59]} 3. Bg2 {[%clk 0:02:59]}  Bg4 {[%clk 0:03:00]} 4. O-O {[%clk 0:02:56]}  e6 {[%clk 0:02:58]} 5. c4 {[%clk 0:02:56]}  Nf6 {[%clk 0:02:56]} 6. Qb3 {[%clk 0:02:57]}  Qb6 {[%clk 0:02:56]} 7. d3 {[%clk 0:02:57]}  Nbd7 {[%clk 0:02:56]} 8. Be3 {[%clk 0:02:57]}  Qa6 {[%clk 0:02:56]} 9. Nc3 {[%clk 0:02:53]}  Be7 {[%clk 0:02:56]} 10. h3 {[%clk 0:02:53]}  Bh5 {[%clk 0:02:56]} 11. a3 {[%clk 0:02:45]}  O-O {[%clk 0:02:55]} 12. Qa2 {[%clk 0:02:44]}  Bxf3 {[%clk 0:02:29]} 13. Bxf3 {[%clk 0:02:41]}  dxc4 {[%clk 0:02:25]} 14. dxc4 {[%clk 0:02:17]}  Ne5 {[%clk 0:02:25]} 15. b3 {[%clk 0:02:17]}  Nxf3+ {[%clk 0:02:24]} 16. exf3 {[%clk 0:02:18]}  Rfd8 {[%clk 0:02:23]} 17. Qc2 {[%clk 0:02:02]}  h6 {[%clk 0:02:20]} 18. Ne4 {[%clk 0:01:55]}  Rd7 {[%clk 0:01:32]} 19. a4 {[%clk 0:01:47]}  Rad8 {[%clk 0:01:11]} 20. Rfd1 {[%clk 0:01:46]}  Nxe4 {[%clk 0:01:01]} 21. fxe4 {[%clk 0:01:45]}  b6 {[%clk 0:00:30]} 22. Rxd7 {[%clk 0:01:43]}  Rxd7 {[%clk 0:00:31]} 23. Rd1 {[%clk 0:01:43]}  Qc8 {[%clk 0:00:27]} 24. Rd2 {[%clk 0:01:41]}  Bb4 {[%clk 0:00:27]} 25. Rd3 {[%clk 0:01:36]}  Qd8 {[%clk 0:00:27]} 26. Rxd7 {[%clk 0:01:37]}  Qxd7 {[%clk 0:00:28]} 27. Kf1 {[%clk 0:01:32]}  e5 {[%clk 0:00:20]} 28. Kg2 {[%clk 0:01:26]}  Bc5 {[%clk 0:00:16]} 29. Qd2 {[%clk 0:01:22]}  Qxd2 {[%clk 0:00:11]} 30. Bxd2 {[%clk 0:01:23]}  f6 {[%clk 0:00:08]} 31. b4 {[%clk 0:01:20]}  Bd4 {[%clk 0:00:07]} 32. b5 {[%clk 0:01:17]}  Kf7 {[%clk 0:00:04]} 33. Kf3 {[%clk 0:01:15]}  c5 {[%clk 0:00:02]} 34. a5 {[%clk 0:01:13]}  Ke6 {[%clk 0:00:02]} 35. a6 {[%clk 0:01:14]}  h5 {[%clk 0:00:01]} 36. Be1 {[%clk 0:01:12]}  Kd7 {[%clk 0:00:01]} 37. g4 {[%clk 0:01:11]}  hxg4+ {[%clk 0:00:01]} 38. Kxg4 {[%clk 0:01:10]}  g6 {[%clk 0:00:02]} 39. f3 {[%clk 0:01:02]}  Be3 {[%clk 0:00:02]} 40. h4 {[%clk 0:00:50]}  Ke6 {[%clk 0:00:01]} 41. Ba5 {[%clk 0:00:49]}  f5+ {[%clk 0:00:02]} 42. exf5+ {[%clk 0:00:42]}  gxf5+ {[%clk 0:00:03]} 43. Kh5 {[%clk 0:00:42]}  e4 {[%clk 0:00:03]} 44. fxe4 {[%clk 0:00:42]}  fxe4 {[%clk 0:00:03]} 45. Kg4 {[%clk 0:00:42]}  bxa5 {[%clk 0:00:01]} 46. b6 {[%clk 0:00:41]}  Bf4 {[%clk 0:00:01]} 47. bxa7 {[%clk 0:00:41]}  Bb8 {[%clk 0:00:00]} 48. a8=Q {[%clk 0:00:42]} 1-0


[Site "https://www.chess.com"]

[Event "Titled Tuesday Blitz May 16 Early 2023"]
[White "Tang, Andrew"]
[Black "Suyarov, Mukhammadzokhid"]
[WhiteFideId "2059630"]
[BlackFideId "14210495"]
[WhiteElo "2596"]
[BlackElo "2361"]
[Result "0-1"]
[Round "07"]
[TimeControl "180+2"]
[Date "2023.05.16"]
[WhiteClock "0:00:03"]
[BlackClock "0:00:18"]

1. d4 {[%clk 0:02:59]}  e6 {[%clk 0:02:58]} 2. Nf3 {[%clk 0:02:58]}  Nf6 {[%clk 0:02:55]} 3. Bf4 {[%clk 0:02:59]}  b6 {[%clk 0:02:55]} 4. e3 {[%clk 0:02:58]}  Bb7 {[%clk 0:02:55]} 5. a4 {[%clk 0:02:56]}  a6 {[%clk 0:02:55]} 6. a5 {[%clk 0:02:54]}  b5 {[%clk 0:02:54]} 7. c4 {[%clk 0:02:54]}  bxc4 {[%clk 0:02:53]} 8. Bxc4 {[%clk 0:02:55]}  Bb4+ {[%clk 0:02:52]} 9. Nc3 {[%clk 0:02:55]}  O-O {[%clk 0:02:51]} 10. O-O {[%clk 0:02:55]}  d6 {[%clk 0:02:49]} 11. Qb3 {[%clk 0:02:13]}  Nc6 {[%clk 0:02:32]} 12. d5 {[%clk 0:02:08]}  exd5 {[%clk 0:02:27]} 13. Nxd5 {[%clk 0:02:09]}  Rb8 {[%clk 0:02:21]} 14. Nxb4 {[%clk 0:01:56]}  Nxb4 {[%clk 0:02:18]} 15. Qxb4 {[%clk 0:01:56]}  Bxf3 {[%clk 0:02:16]} 16. Qd2 {[%clk 0:01:43]}  Bb7 {[%clk 0:02:14]} 17. f3 {[%clk 0:01:39]}  Nd7 {[%clk 0:02:11]} 18. e4 {[%clk 0:01:38]}  Ne5 {[%clk 0:01:52]} 19. Be2 {[%clk 0:01:36]}  Ng6 {[%clk 0:01:48]} 20. Bg5 {[%clk 0:01:33]}  Qd7 {[%clk 0:01:41]} 21. Rac1 {[%clk 0:01:13]}  h6 {[%clk 0:01:33]} 22. Be3 {[%clk 0:01:06]}  Ne5 {[%clk 0:01:27]} 23. Rfd1 {[%clk 0:00:58]}  Rfe8 {[%clk 0:01:25]} 24. Bd4 {[%clk 0:00:41]}  Re6 {[%clk 0:01:20]} 25. b4 {[%clk 0:00:39]}  Nc6 {[%clk 0:01:14]} 26. Ba1 {[%clk 0:00:33]}  Rg6 {[%clk 0:01:11]} 27. b5 {[%clk 0:00:29]}  Qh3 {[%clk 0:01:04]} 28. Bf1 {[%clk 0:00:20]}  axb5 {[%clk 0:01:03]} 29. a6 {[%clk 0:00:18]}  Ba8 {[%clk 0:00:59]} 30. Kh1 {[%clk 0:00:16]}  Qh5 {[%clk 0:00:51]} 31. Qb2 {[%clk 0:00:11]}  Ne5 {[%clk 0:00:49]} 32. Qf2 {[%clk 0:00:08]}  c5 {[%clk 0:00:48]} 33. Rd2 {[%clk 0:00:08]}  Rb6 {[%clk 0:00:40]} 34. h3 {[%clk 0:00:08]}  Rf6 {[%clk 0:00:36]} 35. Qe3 {[%clk 0:00:06]}  Rxa6 {[%clk 0:00:29]} 36. Bxb5 {[%clk 0:00:04]}  Ra5 {[%clk 0:00:23]} 37. Be2 {[%clk 0:00:04]}  Qh4 {[%clk 0:00:22]} 38. Rf1 {[%clk 0:00:03]}  Rg6 {[%clk 0:00:19]} 39. f4 {[%clk 0:00:03]}  Rg3 {[%clk 0:00:19]} 40. Bf3 {[%clk 0:00:03]}  Nxf3 {[%clk 0:00:18]} 41. Rd3 {[%clk 0:00:02]}  Rxh3+ {[%clk 0:00:17]} 42. gxh3 {[%clk 0:00:03]}  Qxh3# {[%clk 0:00:18]} 0-1


[Site "https://www.chess.com"]